[Event "Titled Tuesday Blitz February 22 Early 2022"]
[White "Do Nascimento,Christian Almeida"]
[Black "Dew, Brian"]
[WhiteFideId "2143801"]
[BlackFideId "6000495"]
[WhiteElo "2108"]
[BlackElo "2118"]
[Result "1-0"]
[Round "02"]
[TimeControl "180+1"]
[Date "2022.02.22"]
[WhiteClock "0:00:11"]
[BlackClock "0:00:06"]

1. d4 {[%clk 0:03:00]}  d5 {[%clk 0:02:55]} 2. e3 {[%clk 0:02:57]}  Nf6 {[%clk 0:02:55]} 3. Bd3 {[%clk 0:02:57]}  c5 {[%clk 0:02:54]} 4. c3 {[%clk 0:02:57]}  Nc6 {[%clk 0:02:53]} 5. f4 {[%clk 0:02:57]}  g6 {[%clk 0:02:48]} 6. Nf3 {[%clk 0:02:57]}  Bg7 {[%clk 0:02:47]} 7. O-O {[%clk 0:02:56]}  O-O {[%clk 0:02:46]} 8. Nbd2 {[%clk 0:02:56]}  Qb6 {[%clk 0:02:23]} 9. Ne5 {[%clk 0:02:53]}  Bf5 {[%clk 0:02:17]} 10. Bxf5 {[%clk 0:02:52]}  gxf5 {[%clk 0:02:18]} 11. Ndf3 {[%clk 0:02:46]}  e6 {[%clk 0:02:15]} 12. Ng5 {[%clk 0:02:17]}  Rad8 {[%clk 0:02:08]} 13. Qf3 {[%clk 0:02:04]}  h6 {[%clk 0:02:06]} 14. Nh3 {[%clk 0:01:47]}  Ne4 {[%clk 0:02:05]} 15. Nf2 {[%clk 0:01:42]}  f6 {[%clk 0:01:43]} 16. Ned3 {[%clk 0:01:26]}  c4 {[%clk 0:01:35]} 17. Ne1 {[%clk 0:01:26]}  Kh7 {[%clk 0:01:27]} 18. g4 {[%clk 0:01:15]}  Nxf2 {[%clk 0:01:26]} 19. Rxf2 {[%clk 0:01:14]}  fxg4 {[%clk 0:01:24]} 20. Qxg4 {[%clk 0:01:14]}  f5 {[%clk 0:01:24]} 21. Qh5 {[%clk 0:01:12]}  Bf6 {[%clk 0:01:22]} 22. Rg2 {[%clk 0:01:07]}  Ne7 {[%clk 0:01:05]} 23. Nf3 {[%clk 0:01:02]}  Qc6 {[%clk 0:00:56]} 24. Ng5+ {[%clk 0:00:52]}  Bxg5 {[%clk 0:00:56]} 25. fxg5 {[%clk 0:00:52]}  Ng8 {[%clk 0:00:53]} 26. gxh6 {[%clk 0:00:47]}  Qe8 {[%clk 0:00:49]} 27. Rg7+ {[%clk 0:00:34]}  Kh8 {[%clk 0:00:48]} 28. Qg5 {[%clk 0:00:34]}  Rd7 {[%clk 0:00:23]} 29. Bd2 {[%clk 0:00:32]}  Rff7 {[%clk 0:00:10]} 30. Rg6 {[%clk 0:00:13]}  Rh7 {[%clk 0:00:10]} 31. Kh1 {[%clk 0:00:12]}  Qf8 {[%clk 0:00:10]} 32. Rg1 {[%clk 0:00:12]}  Nxh6 {[%clk 0:00:09]} 33. Rf6 {[%clk 0:00:09]}  Rdf7 {[%clk 0:00:08]} 34. Rxf7 {[%clk 0:00:08]}  Qxf7 {[%clk 0:00:07]} 35. Qd8+ {[%clk 0:00:08]}  Ng8 {[%clk 0:00:07]} 36. Be1 {[%clk 0:00:07]}  Rg7 {[%clk 0:00:05]} 37. Bg3 {[%clk 0:00:07]}  Kh7 {[%clk 0:00:04]} 38. Qh4+ {[%clk 0:00:06]}  Nh6 {[%clk 0:00:03]} 39. Bf4 {[%clk 0:00:05]}  Rxg1+ {[%clk 0:00:03]} 40. Kxg1 {[%clk 0:00:06]}  Qg6+ {[%clk 0:00:03]} 41. Kf2 {[%clk 0:00:06]}  Qg7 {[%clk 0:00:02]} 42. Kf3 {[%clk 0:00:06]}  Qg4+ {[%clk 0:00:02]} 43. Qxg4 {[%clk 0:00:06]}  Nxg4 {[%clk 0:00:02]} 44. Bg3 {[%clk 0:00:06]}  Kg6 {[%clk 0:00:03]} 45. Kf4 {[%clk 0:00:06]}  Kf6 {[%clk 0:00:02]} 46. Bh4+ {[%clk 0:00:06]}  Kg6 {[%clk 0:00:02]} 47. Bg3 {[%clk 0:00:06]}  Kf6 {[%clk 0:00:02]} 48. h3 {[%clk 0:00:07]}  Nh6 {[%clk 0:00:01]} 49. Bh4+ {[%clk 0:00:07]}  Kg6 {[%clk 0:00:01]} 50. Ke5 {[%clk 0:00:07]}  Kh5 {[%clk 0:00:02]} 51. Bg3 {[%clk 0:00:06]}  Nf7+ {[%clk 0:00:01]} 52. Kxe6 {[%clk 0:00:06]}  Ng5+ {[%clk 0:00:02]} 53. Kd6 {[%clk 0:00:06]}  Nxh3 {[%clk 0:00:02]} 54. Kxd5 {[%clk 0:00:06]}  Kg4 {[%clk 0:00:03]} 55. Bf4 {[%clk 0:00:05]}  Nxf4+ {[%clk 0:00:03]} 56. exf4 {[%clk 0:00:06]}  Kxf4 {[%clk 0:00:04]} 57. Ke6 {[%clk 0:00:06]}  Ke4 {[%clk 0:00:04]} 58. d5 {[%clk 0:00:07]}  f4 {[%clk 0:00:05]} 59. d6 {[%clk 0:00:08]}  f3 {[%clk 0:00:05]} 60. d7 {[%clk 0:00:09]}  f2 {[%clk 0:00:06]} 61. d8=Q {[%clk 0:00:09]}  f1=Q {[%clk 0:00:07]} 62. Qd4+ {[%clk 0:00:10]}  Kf3 {[%clk 0:00:07]} 63. Qf6+ {[%clk 0:00:10]}  Ke2 {[%clk 0:00:07]} 64. Qxf1+ {[%clk 0:00:10]}  Kxf1 {[%clk 0:00:07]} 65. Kd5 {[%clk 0:00:10]}  b5 {[%clk 0:00:04]} 66. Kc5 {[%clk 0:00:10]}  a6 {[%clk 0:00:04]} 67. Kb6 {[%clk 0:00:11]}  Ke2 {[%clk 0:00:04]} 68. Kxa6 {[%clk 0:00:11]}  Kd3 {[%clk 0:00:05]} 69. Kxb5 {[%clk 0:00:11]}  Kc2 {[%clk 0:00:04]} 70. Kxc4 {[%clk 0:00:10]}  Kxb2 {[%clk 0:00:05]} 71. a4 {[%clk 0:00:10]}  Ka3 {[%clk 0:00:06]} 72. a5 {[%clk 0:00:11]} 1-0


[Site "https://www.chess.com"]

[Event "Titled Tuesday Blitz February 22 Early 2022"]
[White "Dovbnia, Nikita"]
[Black "Garv Gaur"]
[WhiteFideId "54104599"]
[BlackFideId "45030839"]
[WhiteElo "2111"]
[BlackElo "1950"]
[Result "1-0"]
[Round "02"]
[TimeControl "180+1"]
[Date "2022.02.22"]
[WhiteClock "0:00:15"]
[BlackClock "0:00:05"]

1. Nf3 {[%clk 0:03:00]}  d5 {[%clk 0:02:59]} 2. g3 {[%clk 0:03:01]}  Nf6 {[%clk 0:02:59]} 3. Bg2 {[%clk 0:03:02]}  c5 {[%clk 0:02:59]} 4. d3 {[%clk 0:03:01]}  Nc6 {[%clk 0:02:59]} 5. O-O {[%clk 0:03:02]}  Bg4 {[%clk 0:02:57]} 6. c4 {[%clk 0:03:01]}  e6 {[%clk 0:02:57]} 7. Nc3 {[%clk 0:02:59]}  Be7 {[%clk 0:02:57]} 8. h3 {[%clk 0:02:58]}  Bh5 {[%clk 0:02:55]} 9. e4 {[%clk 0:02:54]}  dxc4 {[%clk 0:02:43]} 10. dxc4 {[%clk 0:02:54]}  Nd4 {[%clk 0:02:43]} 11. Be3 {[%clk 0:02:49]}  O-O {[%clk 0:02:26]} 12. g4 {[%clk 0:02:46]}  Nxf3+ {[%clk 0:02:23]} 13. Bxf3 {[%clk 0:02:41]}  Bg6 {[%clk 0:02:23]} 14. e5 {[%clk 0:02:37]}  Nd7 {[%clk 0:02:22]} 15. Bf4 {[%clk 0:02:25]}  Rb8 {[%clk 0:02:13]} 16. Ne4 {[%clk 0:02:24]}  Nb6 {[%clk 0:02:02]} 17. b3 {[%clk 0:02:18]}  Qc7 {[%clk 0:01:26]} 18. Qe2 {[%clk 0:02:07]}  Nd7 {[%clk 0:01:20]} 19. Nd6 {[%clk 0:01:58]}  Rfd8 {[%clk 0:01:20]} 20. Rad1 {[%clk 0:01:53]}  Nf8 {[%clk 0:01:07]} 21. Rd2 {[%clk 0:01:42]}  Rd7 {[%clk 0:00:57]} 22. Rfd1 {[%clk 0:01:26]}  a6 {[%clk 0:00:57]} 23. Qe3 {[%clk 0:01:15]}  Qb6 {[%clk 0:00:40]} 24. Nc8 {[%clk 0:00:56]}  Qc7 {[%clk 0:00:33]} 25. Rxd7 {[%clk 0:00:49]}  Nxd7 {[%clk 0:00:31]} 26. Nxe7+ {[%clk 0:00:49]}  Kf8 {[%clk 0:00:31]} 27. Nxg6+ {[%clk 0:00:46]}  hxg6 {[%clk 0:00:32]} 28. Rd6 {[%clk 0:00:40]}  Nb6 {[%clk 0:00:32]} 29. Qd2 {[%clk 0:00:34]}  Re8 {[%clk 0:00:31]} 30. Bg2 {[%clk 0:00:24]}  Ke7 {[%clk 0:00:21]} 31. Bg5+ {[%clk 0:00:23]}  f6 {[%clk 0:00:21]} 32. Bf4 {[%clk 0:00:23]}  g5 {[%clk 0:00:20]} 33. Bg3 {[%clk 0:00:20]}  Nc8 {[%clk 0:00:20]} 34. exf6+ {[%clk 0:00:18]}  Kxf6 {[%clk 0:00:19]} 35. Rd7 {[%clk 0:00:18]}  Qb6 {[%clk 0:00:15]} 36. Qc3+ {[%clk 0:00:16]}  e5 {[%clk 0:00:15]} 37. Qf3+ {[%clk 0:00:15]}  Kg6 {[%clk 0:00:06]} 38. Qf7+ {[%clk 0:00:15]}  Kh6 {[%clk 0:00:05]} 39. Qxg7# {[%clk 0:00:15]} 1-0


[Site "https://www.chess.com"]

[Event "Titled Tuesday Blitz February 22 Early 2022"]
[White "Durarbayli, Vasif"]
[Black "Roberson, Peter T"]
[WhiteFideId "13402935"]
[BlackFideId "412384"]
[WhiteElo "2528"]
[BlackElo "2346"]
[Result "1-0"]
[Round "02"]
[TimeControl "180+1"]
[Date "2022.02.22"]
[WhiteClock "0:00:28"]
[BlackClock "0:00:02"]

1. e4 {[%clk 0:03:00]}  c5 {[%clk 0:02:59]} 2. Nf3 {[%clk 0:03:00]}  a6 {[%clk 0:02:59]} 3. c4 {[%clk 0:03:00]}  e6 {[%clk 0:02:58]} 4. Nc3 {[%clk 0:02:59]}  Qc7 {[%clk 0:02:58]} 5. Be2 {[%clk 0:03:00]}  b6 {[%clk 0:02:55]} 6. O-O {[%clk 0:03:00]}  Bb7 {[%clk 0:02:55]} 7. b3 {[%clk 0:02:59]}  d6 {[%clk 0:02:53]} 8. d4 {[%clk 0:02:59]}  cxd4 {[%clk 0:02:53]} 9. Nxd4 {[%clk 0:03:00]}  Nf6 {[%clk 0:02:53]} 10. Re1 {[%clk 0:02:54]}  Be7 {[%clk 0:02:43]} 11. Bf1 {[%clk 0:02:51]}  O-O {[%clk 0:02:43]} 12. Bb2 {[%clk 0:02:51]}  Nbd7 {[%clk 0:02:43]} 13. Qf3 {[%clk 0:02:36]}  Nc5 {[%clk 0:02:29]} 14. Rad1 {[%clk 0:02:35]}  Rfe8 {[%clk 0:02:19]} 15. g4 {[%clk 0:02:32]}  Bf8 {[%clk 0:02:06]} 16. g5 {[%clk 0:02:31]}  Nfd7 {[%clk 0:02:02]} 17. Qg3 {[%clk 0:02:31]}  Ne5 {[%clk 0:01:51]} 18. h4 {[%clk 0:02:27]}  Rad8 {[%clk 0:01:45]} 19. h5 {[%clk 0:02:24]}  d5 {[%clk 0:01:40]} 20. f4 {[%clk 0:02:08]}  Nc6 {[%clk 0:01:34]} 21. Nxc6 {[%clk 0:02:07]}  Bxc6 {[%clk 0:01:32]} 22. exd5 {[%clk 0:02:07]}  exd5 {[%clk 0:01:32]} 23. Rxe8 {[%clk 0:02:08]}  Rxe8 {[%clk 0:01:28]} 24. Nxd5 {[%clk 0:02:04]}  Bxd5 {[%clk 0:01:01]} 25. Rxd5 {[%clk 0:02:05]}  Ne4 {[%clk 0:01:01]} 26. Qf3 {[%clk 0:02:05]}  Bc5+ {[%clk 0:00:45]} 27. Kg2 {[%clk 0:02:04]}  Qc6 {[%clk 0:00:45]} 28. Re5 {[%clk 0:01:53]}  Rxe5 {[%clk 0:00:37]} 29. fxe5 {[%clk 0:01:39]}  Qd7 {[%clk 0:00:22]} 30. Qxe4 {[%clk 0:01:39]}  Qd2+ {[%clk 0:00:22]} 31. Kh3 {[%clk 0:00:52]}  Qxb2 {[%clk 0:00:20]} 32. e6 {[%clk 0:00:52]}  Qc3+ {[%clk 0:00:18]} 33. Bd3 {[%clk 0:00:52]}  fxe6 {[%clk 0:00:16]} 34. Qxh7+ {[%clk 0:00:48]}  Kf7 {[%clk 0:00:16]} 35. h6 {[%clk 0:00:47]}  Bd4 {[%clk 0:00:10]} 36. Qg6+ {[%clk 0:00:43]}  Ke7 {[%clk 0:00:09]} 37. h7 {[%clk 0:00:44]}  Qe1 {[%clk 0:00:08]} 38. Qe4 {[%clk 0:00:41]}  Qxe4 {[%clk 0:00:02]} 39. Bxe4 {[%clk 0:00:41]}  g6 {[%clk 0:00:03]} 40. Bxg6 {[%clk 0:00:42]}  Kf8 {[%clk 0:00:02]} 41. Kg4 {[%clk 0:00:37]}  Bg7 {[%clk 0:00:01]} 42. b4 {[%clk 0:00:26]}  Ke7 {[%clk 0:00:01]} 43. c5 {[%clk 0:00:26]}  bxc5 {[%clk 0:00:02]} 44. bxc5 {[%clk 0:00:26]}  Kd7 {[%clk 0:00:02]} 45. Be4 {[%clk 0:00:27]}  Ke7 {[%clk 0:00:01]} 46. c6 {[%clk 0:00:27]}  Kd6 {[%clk 0:00:01]} 47. Kh5 {[%clk 0:00:27]}  Bd4 {[%clk 0:00:01]} 48. Kg6 {[%clk 0:00:27]}  a5 {[%clk 0:00:02]} 49. Kf7 {[%clk 0:00:27]}  a4 {[%clk 0:00:02]} 50. g6 {[%clk 0:00:28]} 1-0


[Site "https://www.chess.com"]

[Event "Titled Tuesday Blitz February 22 Early 2022"]
[White "Dushyant Sharma"]
[Black "Van den Dikkenberg, Erik"]
[WhiteFideId "25065130"]
[BlackFideId "1005880"]
[WhiteElo "2012"]
[BlackElo "2118"]
[Result "1-0"]
[Round "02"]
[TimeControl "180+1"]
[Date "2022.02.22"]
[WhiteClock "0:00:58"]
[BlackClock "0:00:11"]

1. e4 {[%clk 0:03:00]}  c5 {[%clk 0:02:59]} 2. Nf3 {[%clk 0:02:59]}  d6 {[%clk 0:02:59]} 3. d4 {[%clk 0:03:00]}  cxd4 {[%clk 0:03:00]} 4. Nxd4 {[%clk 0:03:01]}  Nf6 {[%clk 0:03:01]} 5. Nc3 {[%clk 0:02:58]}  a6 {[%clk 0:03:01]} 6. f4 {[%clk 0:02:58]}  g6 {[%clk 0:03:01]} 7. Nf3 {[%clk 0:02:59]}  Bg7 {[%clk 0:03:01]} 8. Bd3 {[%clk 0:02:59]}  O-O {[%clk 0:03:02]} 9. O-O {[%clk 0:03:00]}  Nc6 {[%clk 0:03:02]} 10. a4 {[%clk 0:03:00]}  Bg4 {[%clk 0:02:59]} 11. Qe1 {[%clk 0:03:00]}  Bxf3 {[%clk 0:02:59]} 12. Rxf3 {[%clk 0:03:01]}  Rc8 {[%clk 0:02:57]} 13. Be3 {[%clk 0:02:59]}  Ng4 {[%clk 0:02:53]} 14. Bd2 {[%clk 0:02:57]}  Qb6+ {[%clk 0:02:50]} 15. Kh1 {[%clk 0:02:56]}  Qxb2 {[%clk 0:02:29]} 16. Rb1 {[%clk 0:02:55]}  Qa3 {[%clk 0:02:29]} 17. h3 {[%clk 0:02:55]}  Nd4 {[%clk 0:02:06]} 18. Rg3 {[%clk 0:02:43]}  Nf6 {[%clk 0:01:52]} 19. e5 {[%clk 0:02:20]}  Nh5 {[%clk 0:01:49]} 20. Rg5 {[%clk 0:02:18]}  Nxc2 {[%clk 0:01:37]} 21. Bxc2 {[%clk 0:02:15]}  dxe5 {[%clk 0:01:33]} 22. fxe5 {[%clk 0:02:12]}  Rfd8 {[%clk 0:01:32]} 23. Rb3 {[%clk 0:02:07]}  Qc5 {[%clk 0:01:19]} 24. e6 {[%clk 0:01:59]}  f5 {[%clk 0:01:12]} 25. Bxf5 {[%clk 0:01:30]}  Rxd2 {[%clk 0:01:04]} 26. Qxd2 {[%clk 0:01:26]}  Bxc3 {[%clk 0:01:03]} 27. Qd1 {[%clk 0:01:13]}  Bf6 {[%clk 0:00:47]} 28. Rxh5 {[%clk 0:01:01]}  gxh5 {[%clk 0:00:18]} 29. Rg3+ {[%clk 0:01:00]}  Kh8 {[%clk 0:00:18]} 30. Qxh5 {[%clk 0:01:00]}  Qc1+ {[%clk 0:00:11]} 31. Kh2 {[%clk 0:01:01]}  h6 {[%clk 0:00:11]} 32. Qg6 {[%clk 0:00:58]} 1-0


[Site "https://www.chess.com"]

[Event "Titled Tuesday Blitz February 22 Early 2022"]
[White "Dzhaparov, Medet"]
[Black "Ezat, Mohamed"]
[WhiteFideId "13803689"]
[BlackFideId "10600906"]
[WhiteElo "1702"]
[BlackElo "2386"]
[Result "0-1"]
[Round "02"]
[TimeControl "180+1"]
[Date "2022.02.22"]
[WhiteClock "0:00:16"]
[BlackClock "0:00:08"]

1. e4 {[%clk 0:02:37]}  e5 {[%clk 0:02:19]} 2. Nf3 {[%clk 0:02:34]}  Nc6 {[%clk 0:02:19]} 3. Bc4 {[%clk 0:02:34]}  Nf6 {[%clk 0:02:18]} 4. Ng5 {[%clk 0:02:32]}  d5 {[%clk 0:02:17]} 5. exd5 {[%clk 0:02:31]}  b5 {[%clk 0:02:06]} 6. Be2 {[%clk 0:02:27]}  Qxd5 {[%clk 0:02:02]} 7. O-O {[%clk 0:02:26]}  h6 {[%clk 0:02:00]} 8. Nf3 {[%clk 0:02:20]}  e4 {[%clk 0:01:53]} 9. Nc3 {[%clk 0:02:19]}  Qc5 {[%clk 0:01:52]} 10. d4 {[%clk 0:01:53]}  Qb6 {[%clk 0:01:42]} 11. Bxb5 {[%clk 0:01:39]}  exf3 {[%clk 0:01:40]} 12. d5 {[%clk 0:01:32]}  Bd7 {[%clk 0:01:30]} 13. dxc6 {[%clk 0:01:27]}  Bxc6 {[%clk 0:01:29]} 14. Qxf3 {[%clk 0:01:22]}  Qxb5 {[%clk 0:01:29]} 15. Nxb5 {[%clk 0:01:21]}  Bxf3 {[%clk 0:01:28]} 16. Nxc7+ {[%clk 0:01:20]}  Kd7 {[%clk 0:01:28]} 17. Nxa8 {[%clk 0:01:13]}  Bxa8 {[%clk 0:01:26]} 18. Bf4 {[%clk 0:01:13]}  Bc5 {[%clk 0:01:22]} 19. Rad1+ {[%clk 0:01:12]}  Kc8 {[%clk 0:01:21]} 20. c3 {[%clk 0:01:12]}  a5 {[%clk 0:00:59]} 21. a3 {[%clk 0:01:05]}  a4 {[%clk 0:00:59]} 22. Bd6 {[%clk 0:01:01]}  Bb6 {[%clk 0:00:56]} 23. Be5 {[%clk 0:00:54]}  Ne4 {[%clk 0:00:55]} 24. Bd4 {[%clk 0:00:38]}  Bc7 {[%clk 0:00:49]} 25. f3 {[%clk 0:00:35]}  Nd6 {[%clk 0:00:44]} 26. Rfe1 {[%clk 0:00:31]}  Nf5 {[%clk 0:00:33]} 27. Rd3 {[%clk 0:00:16]}  Nxd4 {[%clk 0:00:31]} 28. cxd4 {[%clk 0:00:14]}  Kd7 {[%clk 0:00:31]} 29. Rc3 {[%clk 0:00:14]}  Bb6 {[%clk 0:00:30]} 30. Rc4 {[%clk 0:00:14]}  Bc6 {[%clk 0:00:19]} 31. Kf2 {[%clk 0:00:13]}  Rc8 {[%clk 0:00:18]} 32. Rec1 {[%clk 0:00:13]}  Bb7 {[%clk 0:00:18]} 33. Rxc8 {[%clk 0:00:12]}  Bxc8 {[%clk 0:00:18]} 34. Ke3 {[%clk 0:00:13]}  Ba6 {[%clk 0:00:17]} 35. Ke4 {[%clk 0:00:12]}  Bd8 {[%clk 0:00:16]} 36. d5 {[%clk 0:00:12]}  Bf6 {[%clk 0:00:16]} 37. Rc6 {[%clk 0:00:12]}  Bb7 {[%clk 0:00:15]} 38. Rb6 {[%clk 0:00:12]}  Kc7 {[%clk 0:00:15]} 39. Rb4 {[%clk 0:00:12]}  Ba8 {[%clk 0:00:15]} 40. Rxa4 {[%clk 0:00:12]}  Bb7 {[%clk 0:00:15]} 41. Rc4+ {[%clk 0:00:13]}  Kd6 {[%clk 0:00:15]} 42. b4 {[%clk 0:00:14]}  Bxd5+ {[%clk 0:00:14]} 43. Kd3 {[%clk 0:00:14]}  Bxc4+ {[%clk 0:00:15]} 44. Kxc4 {[%clk 0:00:15]}  Be5 {[%clk 0:00:16]} 45. g3 {[%clk 0:00:15]}  Bb2 {[%clk 0:00:16]} 46. a4 {[%clk 0:00:15]}  Kc6 {[%clk 0:00:16]} 47. h3 {[%clk 0:00:15]}  Be5 {[%clk 0:00:15]} 48. a5 {[%clk 0:00:14]}  Bxg3 {[%clk 0:00:15]} 49. b5+ {[%clk 0:00:15]}  Kb7 {[%clk 0:00:15]} 50. Kc5 {[%clk 0:00:15]}  Bf2+ {[%clk 0:00:15]} 51. Kd5 {[%clk 0:00:15]}  Be1 {[%clk 0:00:15]} 52. a6+ {[%clk 0:00:15]}  Kb6 {[%clk 0:00:15]} 53. Kd6 {[%clk 0:00:15]}  Bh4 {[%clk 0:00:14]} 54. Kd7 {[%clk 0:00:15]}  f5 {[%clk 0:00:12]} 55. Ke6 {[%clk 0:00:15]}  f4 {[%clk 0:00:12]} 56. Kf5 {[%clk 0:00:15]}  g5 {[%clk 0:00:11]} 57. Kg4 {[%clk 0:00:16]}  Ka7 {[%clk 0:00:08]} 58. Kh5 {[%clk 0:00:15]}  Kb6 {[%clk 0:00:07]} 59. Kg4 {[%clk 0:00:16]}  Kc7 {[%clk 0:00:05]} 60. Kh5 {[%clk 0:00:14]}  Kb6 {[%clk 0:00:05]} 61. Kg6 {[%clk 0:00:14]}  Ka7 {[%clk 0:00:05]} 62. Kf5 {[%clk 0:00:14]}  Kb6 {[%clk 0:00:05]} 63. Ke4 {[%clk 0:00:14]}  Bf2 {[%clk 0:00:05]} 64. Kf5 {[%clk 0:00:15]}  Kxb5 {[%clk 0:00:05]} 65. Kg6 {[%clk 0:00:14]}  Kxa6 {[%clk 0:00:05]} 66. Kxh6 {[%clk 0:00:15]}  Bh4 {[%clk 0:00:06]} 67. Kh5 {[%clk 0:00:15]}  Kb5 {[%clk 0:00:06]} 68. Kg4 {[%clk 0:00:15]}  Kc4 {[%clk 0:00:07]} 69. Kf5 {[%clk 0:00:16]}  Kd4 {[%clk 0:00:07]} 70. Kg4 {[%clk 0:00:16]}  Ke3 {[%clk 0:00:08]} 0-1


[Site "https://www.chess.com"]

[Event "Titled Tuesday Blitz February 22 Early 2022"]
[White "Fajdetic, Hrvoje"]
[Black "Samant Aditya S"]
[WhiteFideId "14501945"]
[BlackFideId "35080580"]
[WhiteElo "2140"]
[BlackElo "1916"]
[Result "0-1"]
[Round "02"]
[TimeControl "180+1"]
[Date "2022.02.22"]
[WhiteClock "0:01:05"]
[BlackClock "0:00:26"]

1. d4 {[%clk 0:03:00]}  Nf6 {[%clk 0:03:00]} 2. Bf4 {[%clk 0:03:00]}  c5 {[%clk 0:02:58]} 3. e3 {[%clk 0:03:00]}  d5 {[%clk 0:02:58]} 4. Nc3 {[%clk 0:02:59]}  cxd4 {[%clk 0:02:55]} 5. exd4 {[%clk 0:02:59]}  Bg4 {[%clk 0:02:55]} 6. f3 {[%clk 0:02:57]}  Bd7 {[%clk 0:02:55]} 7. Bd3 {[%clk 0:02:55]}  Nc6 {[%clk 0:02:49]} 8. Nce2 {[%clk 0:02:55]}  Qb6 {[%clk 0:02:41]} 9. c3 {[%clk 0:02:41]}  Qxb2 {[%clk 0:02:23]} 10. Rb1 {[%clk 0:02:34]}  Qxa2 {[%clk 0:02:23]} 11. Rxb7 {[%clk 0:02:34]}  e6 {[%clk 0:02:16]} 12. Nh3 {[%clk 0:02:26]}  Be7 {[%clk 0:01:46]} 13. O-O {[%clk 0:02:26]}  O-O {[%clk 0:01:46]} 14. g4 {[%clk 0:02:21]}  Rfd8 {[%clk 0:01:41]} 15. Bc7 {[%clk 0:02:14]}  Rdc8 {[%clk 0:01:34]} 16. Be5 {[%clk 0:01:56]}  Nxe5 {[%clk 0:01:14]} 17. dxe5 {[%clk 0:01:57]}  Bc5+ {[%clk 0:01:14]} 18. Kh1 {[%clk 0:01:53]}  Bc6 {[%clk 0:01:10]} 19. Rxf7 {[%clk 0:01:47]}  Kxf7 {[%clk 0:01:03]} 20. Ng5+ {[%clk 0:01:47]}  Ke7 {[%clk 0:01:03]} 21. exf6+ {[%clk 0:01:46]}  gxf6 {[%clk 0:01:04]} 22. Nxh7 {[%clk 0:01:38]}  Rh8 {[%clk 0:00:44]} 23. Qc1 {[%clk 0:01:25]}  Rxh7 {[%clk 0:00:30]} 24. Qf4 {[%clk 0:01:05]}  Bd6 {[%clk 0:00:26]} 0-1


[Site "https://www.chess.com"]

[Event "Titled Tuesday Blitz February 22 Early 2022"]
[White "Fakhretdinova, Margarita"]
[Black "Ozates, Tuna"]
[WhiteFideId "24103667"]
[BlackFideId "6354521"]
[WhiteElo "2239"]
[BlackElo "1872"]
[Result "0-1"]
[Round "02"]
[TimeControl "180+1"]
[Date "2022.02.22"]
[WhiteClock "0:01:44"]
[BlackClock "0:02:34"]

1. g3 {[%clk 0:03:00]}  c6 {[%clk 0:03:00]} 2. Bg2 {[%clk 0:03:00]}  e5 {[%clk 0:03:01]} 3. d3 {[%clk 0:02:59]}  d5 {[%clk 0:03:01]} 4. e4 {[%clk 0:02:57]}  Nf6 {[%clk 0:03:01]} 5. Nd2 {[%clk 0:02:56]}  Bc5 {[%clk 0:03:01]} 6. Ne2 {[%clk 0:02:55]}  Bxf2+ {[%clk 0:02:57]} 7. Kf1 {[%clk 0:02:40]}  Ng4 {[%clk 0:02:49]} 8. Nb3 {[%clk 0:02:33]}  Qf6 {[%clk 0:02:46]} 9. Nf4 {[%clk 0:01:45]}  exf4 {[%clk 0:02:43]} 10. h3 {[%clk 0:01:45]}  Ne3+ {[%clk 0:02:39]} 11. Bxe3 {[%clk 0:01:44]}  fxe3 {[%clk 0:02:34]} 0-1


[Site "https://www.chess.com"]

[Event "Titled Tuesday Blitz February 22 Early 2022"]
[White "Farmani Anosheh, Armin"]
[Black "Samarth, J Rao"]
[WhiteFideId "24613240"]
[BlackFideId "46652370"]
[WhiteElo "2289"]
[BlackElo "1514"]
[Result "0-1"]
[Round "02"]
[TimeControl "180+1"]
[Date "2022.02.22"]
[WhiteClock "0:00:01"]
[BlackClock "0:00:08"]

1. d4 {[%clk 0:03:00]}  d5 {[%clk 0:01:45]} 2. c4 {[%clk 0:02:59]}  e6 {[%clk 0:01:43]} 3. Nf3 {[%clk 0:03:00]}  Nf6 {[%clk 0:01:43]} 4. g3 {[%clk 0:03:00]}  Be7 {[%clk 0:01:42]} 5. Bg2 {[%clk 0:03:00]}  O-O {[%clk 0:01:42]} 6. O-O {[%clk 0:03:01]}  dxc4 {[%clk 0:01:42]} 7. Qc2 {[%clk 0:03:02]}  b5 {[%clk 0:01:42]} 8. a4 {[%clk 0:03:00]}  b4 {[%clk 0:01:43]} 9. Nfd2 {[%clk 0:02:45]}  Nd5 {[%clk 0:01:38]} 10. Nxc4 {[%clk 0:02:44]}  c5 {[%clk 0:01:39]} 11. dxc5 {[%clk 0:02:09]}  Bxc5 {[%clk 0:01:40]} 12. Nbd2 {[%clk 0:02:06]}  Nd7 {[%clk 0:01:38]} 13. Nb3 {[%clk 0:02:06]}  Be7 {[%clk 0:01:37]} 14. a5 {[%clk 0:01:41]}  Ba6 {[%clk 0:01:36]} 15. Ne3 {[%clk 0:01:27]}  Rc8 {[%clk 0:01:22]} 16. Qd1 {[%clk 0:01:26]}  Nxe3 {[%clk 0:01:14]} 17. Bxe3 {[%clk 0:01:27]}  Nc5 {[%clk 0:01:14]} 18. Nd4 {[%clk 0:01:07]}  Bb7 {[%clk 0:01:11]} 19. Rc1 {[%clk 0:00:54]}  Bxg2 {[%clk 0:01:10]} 20. Kxg2 {[%clk 0:00:55]}  Qd5+ {[%clk 0:01:10]} 21. f3 {[%clk 0:00:45]}  a6 {[%clk 0:01:05]} 22. Bf2 {[%clk 0:00:43]}  Rfd8 {[%clk 0:01:04]} 23. e4 {[%clk 0:00:40]}  Qb7 {[%clk 0:01:04]} 24. Qe2 {[%clk 0:00:30]}  Bf8 {[%clk 0:01:02]} 25. Rc4 {[%clk 0:00:20]}  g6 {[%clk 0:01:00]} 26. Rfc1 {[%clk 0:00:20]}  e5 {[%clk 0:00:59]} 27. Nc2 {[%clk 0:00:17]}  Nb3 {[%clk 0:00:57]} 28. Rxc8 {[%clk 0:00:15]}  Rxc8 {[%clk 0:00:58]} 29. Rd1 {[%clk 0:00:14]}  Nxa5 {[%clk 0:00:57]} 30. Ne3 {[%clk 0:00:14]}  Nc6 {[%clk 0:00:56]} 31. Nd5 {[%clk 0:00:14]}  Kg7 {[%clk 0:00:51]} 32. f4 {[%clk 0:00:14]}  Re8 {[%clk 0:00:50]} 33. Qf3 {[%clk 0:00:13]}  Qb8 {[%clk 0:00:47]} 34. f5 {[%clk 0:00:13]}  Nd4 {[%clk 0:00:33]} 35. Bxd4 {[%clk 0:00:12]}  exd4 {[%clk 0:00:34]} 36. Rxd4 {[%clk 0:00:11]}  Qe5 {[%clk 0:00:34]} 37. Rc4 {[%clk 0:00:08]}  Qxb2+ {[%clk 0:00:34]} 38. Kh3 {[%clk 0:00:07]}  Qe5 {[%clk 0:00:29]} 39. Rc7 {[%clk 0:00:01]}  Qxe4 {[%clk 0:00:17]} 40. f6+ {[%clk 0:00:01]}  Kh6 {[%clk 0:00:08]} 0-1


[Site "https://www.chess.com"]